[Event "Early-Titled-Tuesday-Blitz-November-28-2023"]
[Site "Chess.com"]
[Date "2023.11.28"]
[Round "1"]
[White "bescmelasti"]
[Black "Sulthankan"]
[Result "1-0"]
[WhiteElo "2648"]
[BlackElo "2351"]
[TimeControl "180+1"]
[EndTime "8:07:35 PST"]
[Termination "bescmelasti won by resignation"]

1. e4 {[%clk 0:02:59.5]} 1... e5 {[%clk 0:03:00.1]} 2. Nf3 {[%clk 0:02:58.7]}
2... Nc6 {[%clk 0:02:59.8]} 3. Bc4 {[%clk 0:02:55.7]} 3... Bc5 {[%clk 0:02:57]}
4. O-O {[%clk 0:02:54.9]} 4... Nf6 {[%clk 0:02:55.2]} 5. d3 {[%clk 0:02:55.1]}
5... d6 {[%clk 0:02:47.3]} 6. c3 {[%clk 0:02:55.1]} 6... O-O {[%clk 0:02:42.7]}
7. h3 {[%clk 0:02:53.6]} 7... a6 {[%clk 0:02:35.8]} 8. Bb3 {[%clk 0:02:52.6]}
8... Ba7 {[%clk 0:02:34.9]} 9. Re1 {[%clk 0:02:51.6]} 9... h6 {[%clk 0:02:27.5]}
10. Nbd2 {[%clk 0:02:52.5]} 10... Be6 {[%clk 0:02:23]} 11. Nf1 {[%clk 0:02:52]}
11... Ne7 {[%clk 0:02:11.3]} 12. Bc2 {[%clk 0:02:44.9]} 12... Ng6 {[%clk
0:02:07.4]} 13. Ng3 {[%clk 0:02:40.7]} 13... Re8 {[%clk 0:01:55.3]} 14. d4
{[%clk 0:02:40.5]} 14... c6 {[%clk 0:01:47.8]} 15. Be3 {[%clk 0:02:34.8]} 15...
exd4 {[%clk 0:01:28.8]} 16. cxd4 {[%clk 0:02:29.9]} 16... c5 {[%clk 0:01:09.6]}
17. d5 {[%clk 0:02:29.7]} 17... Bd7 {[%clk 0:01:04.3]} 18. Qd2 {[%clk
0:02:13.4]} 18... Ne5 {[%clk 0:00:58.1]} 19. Nxe5 {[%clk 0:02:08.4]} 19... dxe5
{[%clk 0:00:51.5]} 20. f4 {[%clk 0:01:41.5]} 20... c4 {[%clk 0:00:30.1]} 21.
fxe5 {[%clk 0:01:26.5]} 21... Rxe5 {[%clk 0:00:30]} 22. Bxa7 {[%clk 0:01:26.1]}
22... Rxa7 {[%clk 0:00:30.9]} 23. Qd4 {[%clk 0:01:26.8]} 23... Qb8 {[%clk
0:00:31.7]} 24. Qxc4 {[%clk 0:01:18.5]} 24... b5 {[%clk 0:00:31.9]} 25. Qd4
{[%clk 0:01:17.2]} 25... Ra8 {[%clk 0:00:16.7]} 26. Bb3 {[%clk 0:00:54.4]} 26...
Qd6 {[%clk 0:00:16.4]} 27. Nf1 {[%clk 0:00:41.1]} 27... Rae8 {[%clk 0:00:13]}
28. Nd2 {[%clk 0:00:40.5]} 28... Rg5 {[%clk 0:00:12.2]} 29. Nf3 {[%clk
0:00:36.4]} 29... Qf4 {[%clk 0:00:01.2]} 30. Nxg5 {[%clk 0:00:32.1]} 30... Qxg5
{[%clk 0:00:02.1]} 31. Qe3 {[%clk 0:00:24.8]} 31... Qg6 {[%clk 0:00:01.6]} 32.
e5 {[%clk 0:00:23.8]} 32... Nh5 {[%clk 0:00:02.2]} 33. e6 {[%clk 0:00:23.2]}
33... fxe6 {[%clk 0:00:02.8]} 34. dxe6 {[%clk 0:00:24.1]} 34... Bc6 {[%clk
0:00:03.6]} 35. Re2 {[%clk 0:00:12.8]} 35... Ng3 {[%clk 0:00:04.2]} 36. Rf2
{[%clk 0:00:11.2]} 36... Nf5 {[%clk 0:00:04.8]} 37. Qe5 {[%clk 0:00:09.7]} 37...
Nh4 {[%clk 0:00:04.9]} 38. e7+ {[%clk 0:00:09.8]} 38... Kh8 {[%clk 0:00:04.7]}
39. Bc2 {[%clk 0:00:10.1]} 39... Nf3+ {[%clk 0:00:03.9]} 40. Rxf3 {[%clk
0:00:09.6]} 40... Bxf3 {[%clk 0:00:03]} 41. Bxg6 {[%clk 0:00:08.9]} 1-0

[Event "Early-Titled-Tuesday-Blitz-November-28-2023"]
[Site "Chess.com"]
[Date "2023.11.28"]
[Round "1"]
[White "AndresDelgado77"]
[Black "Mystery2007"]
[Result "1-0"]
[WhiteElo "2257"]
[BlackElo "2574"]
[TimeControl "180+1"]
[EndTime "8:07:37 PST"]
[Termination "AndresDelgado77 won by checkmate"]

1. e4 {[%clk 0:02:58.9]} 1... a6 {[%clk 0:02:59.2]} 2. d4 {[%clk 0:02:54.2]}
2... e6 {[%clk 0:02:58.9]} 3. Nf3 {[%clk 0:02:53]} 3... d5 {[%clk 0:02:57.6]} 4.
e5 {[%clk 0:02:47.9]} 4... c5 {[%clk 0:02:56.3]} 5. c3 {[%clk 0:02:47.7]} 5...
Nc6 {[%clk 0:02:54.2]} 6. Bd3 {[%clk 0:02:42.2]} 6... Nh6 {[%clk 0:02:52.4]} 7.
a3 {[%clk 0:02:36.6]} 7... Bd7 {[%clk 0:02:38.7]} 8. b4 {[%clk 0:02:32.9]} 8...
cxd4 {[%clk 0:02:38.2]} 9. cxd4 {[%clk 0:02:32.7]} 9... Qb6 {[%clk 0:02:37.9]}
10. Be3 {[%clk 0:01:54.9]} 10... Ng4 {[%clk 0:02:32.6]} 11. Nc3 {[%clk
0:01:52.7]} 11... Nxe3 {[%clk 0:02:30.9]} 12. fxe3 {[%clk 0:01:52.6]} 12... Be7
{[%clk 0:02:25.9]} 13. Rc1 {[%clk 0:01:52.1]} 13... O-O {[%clk 0:02:17.6]} 14.
Na4 {[%clk 0:01:50.8]} 14... Qc7 {[%clk 0:02:13]} 15. O-O {[%clk 0:01:42.8]}
15... f5 {[%clk 0:02:01.9]} 16. exf6 {[%clk 0:01:37.4]} 16... Bxf6 {[%clk
0:02:01.8]} 17. Nc5 {[%clk 0:01:36.8]} 17... Rae8 {[%clk 0:01:53]} 18. a4 {[%clk
0:01:22.9]} 18... Qd6 {[%clk 0:01:37.9]} 19. b5 {[%clk 0:01:15.6]} 19... axb5
{[%clk 0:01:37.9]} 20. axb5 {[%clk 0:01:15.6]} 20... Nb4 {[%clk 0:01:34.1]} 21.
Nxd7 {[%clk 0:00:54.9]} 21... Qxd7 {[%clk 0:01:35]} 22. Be2 {[%clk 0:00:52.5]}
22... Rc8 {[%clk 0:01:28.9]} 23. Qb3 {[%clk 0:00:48.6]} 23... Qd6 {[%clk
0:01:28]} 24. Rxc8 {[%clk 0:00:33.7]} 24... Rxc8 {[%clk 0:01:27.3]} 25. Rb1
{[%clk 0:00:34]} 25... Be7 {[%clk 0:01:23.4]} 26. Ne5 {[%clk 0:00:30.8]} 26...
Rc2 {[%clk 0:00:54.4]} 27. Bd3 {[%clk 0:00:22.7]} 27... Rc8 {[%clk 0:00:28]} 28.
g3 {[%clk 0:00:19.4]} 28... g6 {[%clk 0:00:27.8]} 29. Be2 {[%clk 0:00:16.3]}
29... Kg7 {[%clk 0:00:27.8]} 30. Rf1 {[%clk 0:00:15]} 30... Rf8 {[%clk
0:00:26.9]} 31. Qb1 {[%clk 0:00:13.4]} 31... Bf6 {[%clk 0:00:22.5]} 32. Ng4
{[%clk 0:00:11]} 32... h5 {[%clk 0:00:15]} 33. Nxf6 {[%clk 0:00:10.8]} 33...
Rxf6 {[%clk 0:00:15.9]} 34. Rxf6 {[%clk 0:00:10.3]} 34... Kxf6 {[%clk
0:00:16.8]} 35. e4 {[%clk 0:00:08.7]} 35... dxe4 {[%clk 0:00:16]} 36. Qxe4
{[%clk 0:00:09.1]} 36... Qd5 {[%clk 0:00:13.7]} 37. Qf4+ {[%clk 0:00:08.8]}
37... Qf5 {[%clk 0:00:10.8]} 38. Qd6 {[%clk 0:00:05.8]} 38... Nd5 {[%clk
0:00:08]} 39. Qf8+ {[%clk 0:00:04.3]} 39... Kg5 {[%clk 0:00:04.6]} 40. h4#
{[%clk 0:00:04.6]} 1-0

[Event "Early-Titled-Tuesday-Blitz-November-28-2023"]
[Site "Chess.com"]
[Date "2023.11.28"]
[Round "1"]
[White "The_Straightforward_Rook"]
[Black "German_Bazeev"]
[Result "1-0"]
[WhiteElo "2469"]
[BlackElo "2791"]
[TimeControl "180+1"]
[EndTime "8:07:38 PST"]
[Termination "The_Straightforward_Rook won by resignation"]

1. e4 {[%clk 0:02:57.9]} 1... g6 {[%clk 0:02:58.3]} 2. d4 {[%clk 0:02:56.8]}
2... Bg7 {[%clk 0:02:58.9]} 3. Nf3 {[%clk 0:02:56.7]} 3... d6 {[%clk 0:02:59.2]}
4. Bd3 {[%clk 0:02:55.5]} 4... Nf6 {[%clk 0:02:59]} 5. O-O {[%clk 0:02:55.4]}
5... O-O {[%clk 0:02:59.3]} 6. Re1 {[%clk 0:02:55.1]} 6... Nc6 {[%clk
0:02:56.6]} 7. c3 {[%clk 0:02:54.8]} 7... e5 {[%clk 0:02:55.1]} 8. h3 {[%clk
0:02:52.1]} 8... h6 {[%clk 0:02:54.5]} 9. Bc2 {[%clk 0:02:51.6]} 9... Nh5 {[%clk
0:02:52.3]} 10. a4 {[%clk 0:02:39.4]} 10... Qf6 {[%clk 0:02:51.6]} 11. d5 {[%clk
0:02:24.5]} 11... Ne7 {[%clk 0:02:50.9]} 12. Nbd2 {[%clk 0:02:23.2]} 12... Nf4
{[%clk 0:02:48.9]} 13. Nf1 {[%clk 0:02:23.8]} 13... g5 {[%clk 0:02:48.2]} 14.
Ne3 {[%clk 0:02:19.6]} 14... h5 {[%clk 0:02:46.8]} 15. Kh2 {[%clk 0:02:07.2]}
15... Bh6 {[%clk 0:02:11.4]} 16. g4 {[%clk 0:02:00.2]} 16... Kg7 {[%clk
0:01:40.3]} 17. Rg1 {[%clk 0:01:50.5]} 17... Rh8 {[%clk 0:01:12.7]} 18. Nf5+
{[%clk 0:01:43.7]} 18... Kf8 {[%clk 0:01:11.3]} 19. Bxf4 {[%clk 0:01:35.5]}
19... exf4 {[%clk 0:01:10.2]} 20. Kg2 {[%clk 0:01:23.1]} 20... Ng6 {[%clk
0:01:01.8]} 21. Qd4 {[%clk 0:01:20.4]} 21... Qxd4 {[%clk 0:01:01.8]} 22. cxd4
{[%clk 0:01:21.3]} 22... Bxf5 {[%clk 0:00:55.4]} 23. gxf5 {[%clk 0:01:18.6]}
23... Ne7 {[%clk 0:00:55.4]} 24. Kf1 {[%clk 0:01:17]} 24... f6 {[%clk
0:00:52.9]} 25. Bd3 {[%clk 0:01:14.8]} 25... c6 {[%clk 0:00:52.9]} 26. dxc6
{[%clk 0:01:11.9]} 26... bxc6 {[%clk 0:00:53.8]} 27. b4 {[%clk 0:01:10.6]} 27...
Rg8 {[%clk 0:00:49.5]} 28. b5 {[%clk 0:00:59.9]} 28... g4 {[%clk 0:00:39.5]} 29.
hxg4 {[%clk 0:00:55.2]} 29... hxg4 {[%clk 0:00:40.4]} 30. Nh2 {[%clk 0:00:55.6]}
30... g3 {[%clk 0:00:39]} 31. Nf3 {[%clk 0:00:55]} 31... d5 {[%clk 0:00:32.5]}
32. e5 {[%clk 0:00:53]} 32... Kf7 {[%clk 0:00:27]} 33. Ke2 {[%clk 0:00:46.9]}
33... Rac8 {[%clk 0:00:21.4]} 34. e6+ {[%clk 0:00:38.7]} 34... Kf8 {[%clk
0:00:21.2]} 35. Rac1 {[%clk 0:00:34.5]} 35... g2 {[%clk 0:00:21]} 36. bxc6
{[%clk 0:00:32.4]} 36... Rxc6 {[%clk 0:00:20.5]} 37. Rxc6 {[%clk 0:00:29.7]}
37... Nxc6 {[%clk 0:00:21.4]} 38. Bb5 {[%clk 0:00:27.4]} 38... Nb4 {[%clk
0:00:17.2]} 39. Nh4 {[%clk 0:00:27.5]} 39... Nc2 {[%clk 0:00:11.2]} 40. Kd3
{[%clk 0:00:23.7]} 40... Ne1+ {[%clk 0:00:09.7]} 41. Ke2 {[%clk 0:00:22.2]}
41... Nc2 {[%clk 0:00:09.5]} 42. Ng6+ {[%clk 0:00:20.9]} 42... Rxg6 {[%clk
0:00:08.4]} 43. fxg6 {[%clk 0:00:21]} 43... Nxd4+ {[%clk 0:00:09.3]} 44. Kd3
{[%clk 0:00:20.8]} 44... f3 {[%clk 0:00:09.5]} 45. Kxd4 {[%clk 0:00:20.3]} 45...
Bf4 {[%clk 0:00:07.8]} 46. Kxd5 {[%clk 0:00:20.4]} 46... Bh2 {[%clk 0:00:07]}
47. Re1 {[%clk 0:00:17.9]} 47... g1=Q {[%clk 0:00:03.3]} 48. e7+ {[%clk
0:00:18.1]} 1-0

[Event "Early-Titled-Tuesday-Blitz-November-28-2023"]
[Site "Chess.com"]
[Date "2023.11.28"]
[Round "1"]
[White "Qvalda"]
[Black "Kotlyar_K"]
[Result "1-0"]
[WhiteElo "2412"]
[BlackElo "2683"]
[TimeControl "180+1"]
[EndTime "8:07:38 PST"]
[Termination "Qvalda won by resignation"]

1. Nf3 {[%clk 0:03:00.9]} 1... Nf6 {[%clk 0:02:49.1]} 2. g3 {[%clk 0:03:00.3]}
2... g6 {[%clk 0:02:49]} 3. b3 {[%clk 0:03:00.5]} 3... Bg7 {[%clk 0:02:44.6]} 4.
Bb2 {[%clk 0:03:01.1]} 4... O-O {[%clk 0:02:44.6]} 5. Bg2 {[%clk 0:03:01.7]}
5... d5 {[%clk 0:02:42.6]} 6. c4 {[%clk 0:03:01.6]} 6... c6 {[%clk 0:02:36.3]}
7. O-O {[%clk 0:03:01.4]} 7... Re8 {[%clk 0:02:25.9]} 8. d3 {[%clk 0:02:58.8]}
8... Nbd7 {[%clk 0:02:25.2]} 9. Nc3 {[%clk 0:02:54.2]} 9... e5 {[%clk
0:02:17.6]} 10. cxd5 {[%clk 0:02:52.8]} 10... cxd5 {[%clk 0:02:18.5]} 11. Rc1
{[%clk 0:02:45.2]} 11... a6 {[%clk 0:02:14.3]} 12. Qc2 {[%clk 0:02:41]} 12...
Nb6 {[%clk 0:01:43.5]} 13. a4 {[%clk 0:02:35.9]} 13... d4 {[%clk 0:01:38]} 14.
Nb1 {[%clk 0:02:32.3]} 14... Nfd5 {[%clk 0:01:32.9]} 15. a5 {[%clk 0:02:28.9]}
15... Nb4 {[%clk 0:01:26.8]} 16. Qd2 {[%clk 0:02:02.6]} 16... N6d5 {[%clk
0:01:26.5]} 17. Ba3 {[%clk 0:01:57.3]} 17... Nc6 {[%clk 0:01:24.1]} 18. b4
{[%clk 0:01:46.4]} 18... Na7 {[%clk 0:01:06.2]} 19. Bb2 {[%clk 0:01:40.5]} 19...
Nb5 {[%clk 0:01:06.1]} 20. Na3 {[%clk 0:01:36.9]} 20... Nxa3 {[%clk 0:01:00.2]}
21. Bxa3 {[%clk 0:01:37.8]} 21... Be6 {[%clk 0:00:46.8]} 22. Ng5 {[%clk
0:01:34.8]} 22... Qd7 {[%clk 0:00:36.8]} 23. Nxe6 {[%clk 0:01:33.7]} 23... Qxe6
{[%clk 0:00:37.7]} 24. Rc5 {[%clk 0:01:32.2]} 24... Red8 {[%clk 0:00:33.3]} 25.
Rfc1 {[%clk 0:01:09.7]} 25... Bf8 {[%clk 0:00:32.4]} 26. R5c4 {[%clk 0:00:59.4]}
26... Rab8 {[%clk 0:00:26.9]} 27. Bb2 {[%clk 0:00:54.4]} 27... Qd6 {[%clk
0:00:21.6]} 28. h4 {[%clk 0:00:49.5]} 28... Qe6 {[%clk 0:00:17.9]} 29. h5 {[%clk
0:00:47.9]} 29... f5 {[%clk 0:00:15.2]} 30. hxg6 {[%clk 0:00:46]} 30... hxg6
{[%clk 0:00:16.1]} 31. Qg5 {[%clk 0:00:45.6]} 31... Be7 {[%clk 0:00:15]} 32. Qh6
{[%clk 0:00:41.9]} 32... Bf8 {[%clk 0:00:14.8]} 33. Qg5 {[%clk 0:00:41.9]} 33...
Be7 {[%clk 0:00:14.5]} 34. Qh6 {[%clk 0:00:39.1]} 34... Bf8 {[%clk 0:00:14.8]}
35. Qd2 {[%clk 0:00:36.8]} 35... Kh7 {[%clk 0:00:14.5]} 36. Bf3 {[%clk
0:00:26.5]} 36... Bh6 {[%clk 0:00:14]} 37. Qc2 {[%clk 0:00:20.6]} 37... Bxc1
{[%clk 0:00:13.6]} 38. Bxc1 {[%clk 0:00:21.5]} 38... Nf6 {[%clk 0:00:10.4]} 39.
Qd2 {[%clk 0:00:21.5]} 39... Ng8 {[%clk 0:00:09.7]} 40. Rc7+ {[%clk 0:00:20.3]}
40... Rd7 {[%clk 0:00:10.1]} 41. Rc5 {[%clk 0:00:20.5]} 41... Re7 {[%clk
0:00:08.3]} 42. Qg5 {[%clk 0:00:19.9]} 42... Rc8 {[%clk 0:00:08.3]} 43. Bd5
{[%clk 0:00:18.7]} 43... Qf6 {[%clk 0:00:04.6]} 44. Bxg8+ {[%clk 0:00:18.5]}
44... Rxg8 {[%clk 0:00:03.7]} 45. Qxf6 {[%clk 0:00:18.6]} 1-0

[Event "Early-Titled-Tuesday-Blitz-November-28-2023"]
[Site "Chess.com"]
[Date "2023.11.28"]
[Round "1"]
[White "carokannlover213"]
[Black "semchik73"]
[Result "1-0"]
[WhiteElo "2690"]
[BlackElo "2388"]
[TimeControl "180+1"]
[EndTime "8:07:40 PST"]
[Termination "carokannlover213 won by resignation"]

1. e4 {[%clk 0:03:00.9]} 1... Nf6 {[%clk 0:02:59.8]} 2. e5 {[%clk 0:03:01.1]}
2... Nd5 {[%clk 0:03:00.2]} 3. d4 {[%clk 0:02:59.1]} 3... d6 {[%clk 0:03:00]} 4.
c4 {[%clk 0:02:59]} 4... Nb6 {[%clk 0:02:59.9]} 5. exd6 {[%clk 0:02:59.6]} 5...
cxd6 {[%clk 0:03:00]} 6. Nf3 {[%clk 0:02:59.6]} 6... g6 {[%clk 0:03:00.6]} 7.
Be2 {[%clk 0:02:57.8]} 7... Bg7 {[%clk 0:03:00.6]} 8. O-O {[%clk 0:02:58.7]}
8... O-O {[%clk 0:03:00.6]} 9. Be3 {[%clk 0:02:59.4]} 9... Nc6 {[%clk
0:02:59.3]} 10. Nc3 {[%clk 0:03:00]} 10... d5 {[%clk 0:02:59]} 11. c5 {[%clk
0:02:58.5]} 11... Nc4 {[%clk 0:02:59.3]} 12. Bxc4 {[%clk 0:02:52.9]} 12... dxc4
{[%clk 0:02:58.9]} 13. d5 {[%clk 0:02:53.8]} 13... Nb4 {[%clk 0:02:58]} 14. Bd4
{[%clk 0:02:30.1]} 14... Bxd4 {[%clk 0:02:35.8]} 15. Qxd4 {[%clk 0:02:31]} 15...
Nc2 {[%clk 0:02:35.9]} 16. Qxc4 {[%clk 0:02:31.3]} 16... Nxa1 {[%clk 0:02:36]}
17. Rxa1 {[%clk 0:02:32.2]} 17... b6 {[%clk 0:02:20.9]} 18. c6 {[%clk
0:02:26.4]} 18... e6 {[%clk 0:02:14.6]} 19. Rd1 {[%clk 0:02:10.3]} 19... exd5
{[%clk 0:02:14.7]} 20. c7 {[%clk 0:01:32]} 20... Qd6 {[%clk 0:01:55.2]} 21. Nxd5
{[%clk 0:01:18.7]} 21... Bb7 {[%clk 0:01:47.8]} 22. Ne3 {[%clk 0:01:09.5]} 22...
Qc6 {[%clk 0:01:38.4]} 23. Qxc6 {[%clk 0:01:10]} 23... Bxc6 {[%clk 0:01:38.5]}
24. Ne5 {[%clk 0:01:10.9]} 24... Bb7 {[%clk 0:01:27.1]} 25. g4 {[%clk
0:01:04.9]} 25... f6 {[%clk 0:01:05.1]} 26. Nd7 {[%clk 0:01:04.8]} 26... Rf7
{[%clk 0:00:58.6]} 27. h4 {[%clk 0:00:36.4]} 27... Bc6 {[%clk 0:00:42.2]} 28.
Nb8 {[%clk 0:00:33.1]} 28... Rxc7 {[%clk 0:00:30.7]} 29. Rd8+ {[%clk 0:00:33.6]}
29... Kf7 {[%clk 0:00:20.9]} 30. Nxc6 {[%clk 0:00:06]} 30... Rxd8 {[%clk
0:00:20.3]} 31. Nxd8+ {[%clk 0:00:06.9]} 31... Ke7 {[%clk 0:00:20.8]} 32. Nd5+
{[%clk 0:00:07.8]} 32... Kxd8 {[%clk 0:00:20.6]} 33. Nxc7 {[%clk 0:00:08.7]}
33... Kxc7 {[%clk 0:00:21.1]} 34. Kg2 {[%clk 0:00:06.6]} 34... Kd6 {[%clk
0:00:21.4]} 35. Kf3 {[%clk 0:00:07.5]} 35... Kd5 {[%clk 0:00:20.7]} 36. Kf4
{[%clk 0:00:07]} 36... Kd4 {[%clk 0:00:20.2]} 37. f3 {[%clk 0:00:06.7]} 37... h6
{[%clk 0:00:18]} 38. h5 {[%clk 0:00:07]} 38... g5+ {[%clk 0:00:14.5]} 39. Kf5
{[%clk 0:00:07.3]} 39... Ke3 {[%clk 0:00:15.2]} 40. Kg6 {[%clk 0:00:05.7]} 40...
Kxf3 {[%clk 0:00:14.8]} 41. Kxh6 {[%clk 0:00:06.4]} 41... Kxg4 {[%clk
0:00:14.8]} 42. Kg6 {[%clk 0:00:06.9]} 42... f5 {[%clk 0:00:15.2]} 43. h6 {[%clk
0:00:07.6]} 43... f4 {[%clk 0:00:15.9]} 44. h7 {[%clk 0:00:08.3]} 44... f3
{[%clk 0:00:16.5]} 45. h8=Q {[%clk 0:00:08.9]} 45... Kg3 {[%clk 0:00:17.1]} 46.
Qh1 {[%clk 0:00:09.1]} 46... g4 {[%clk 0:00:16.8]} 47. Qg1+ {[%clk 0:00:09.3]}
47... Kf4 {[%clk 0:00:17.2]} 48. Kh5 {[%clk 0:00:09.5]} 48... g3 {[%clk
0:00:17.6]} 49. Kh4 {[%clk 0:00:09.9]} 49... g2 {[%clk 0:00:17.5]} 50. Qf2
{[%clk 0:00:10.2]} 50... Ke4 {[%clk 0:00:17.8]} 51. Kg3 {[%clk 0:00:10.3]} 51...
Ke5 {[%clk 0:00:17]} 52. Kxf3 {[%clk 0:00:10.4]} 1-0

[Event "Early-Titled-Tuesday-Blitz-November-28-2023"]
[Site "Chess.com"]
[Date "2023.11.28"]
[Round "1"]
[White "Shuvalov"]
[Black "EdmundPlayer"]
[Result "1-0"]
[WhiteElo "2575"]
[BlackElo "2215"]
[TimeControl "180+1"]
[EndTime "8:07:40 PST"]
[Termination "Shuvalov won on time"]

1. d4 {[%clk 0:02:55.1]} 1... Nf6 {[%clk 0:02:54]} 2. c4 {[%clk 0:02:53.7]} 2...
e6 {[%clk 0:02:53.6]} 3. Nc3 {[%clk 0:02:53.1]} 3... Bb4 {[%clk 0:02:48.9]} 4.
f3 {[%clk 0:02:52.9]} 4... d5 {[%clk 0:02:47]} 5. a3 {[%clk 0:02:50.3]} 5... Be7
{[%clk 0:02:40.2]} 6. e4 {[%clk 0:02:42.7]} 6... O-O {[%clk 0:02:29.5]} 7. e5
{[%clk 0:02:39]} 7... Ne8 {[%clk 0:02:19.2]} 8. f4 {[%clk 0:02:38.9]} 8... dxc4
{[%clk 0:02:15.9]} 9. Bxc4 {[%clk 0:02:39.8]} 9... b6 {[%clk 0:01:42.2]} 10. Nf3
{[%clk 0:02:36.3]} 10... Bb7 {[%clk 0:01:41.7]} 11. O-O {[%clk 0:02:35.6]} 11...
c6 {[%clk 0:01:20.7]} 12. Qe2 {[%clk 0:02:28.8]} 12... Nc7 {[%clk 0:01:19.9]}
13. Ne4 {[%clk 0:02:04.9]} 13... Nd5 {[%clk 0:01:16.8]} 14. Bd3 {[%clk
0:01:50.8]} 14... a5 {[%clk 0:01:07.6]} 15. Neg5 {[%clk 0:01:42]} 15... h6
{[%clk 0:01:00.6]} 16. Nh3 {[%clk 0:01:20.2]} 16... Ba6 {[%clk 0:00:58.3]} 17.
Bxa6 {[%clk 0:01:18.9]} 17... Nxa6 {[%clk 0:00:57.7]} 18. g4 {[%clk 0:01:17.4]}
18... c5 {[%clk 0:00:53.2]} 19. g5 {[%clk 0:01:14.2]} 19... h5 {[%clk
0:00:40.6]} 20. g6 {[%clk 0:01:13.7]} 20... fxg6 {[%clk 0:00:36.4]} 21. Nfg5
{[%clk 0:01:10.8]} 21... Qd7 {[%clk 0:00:27]} 22. Qc2 {[%clk 0:01:02.9]} 22...
Rf5 {[%clk 0:00:26.4]} 23. dxc5 {[%clk 0:00:48.4]} 23... Bxc5+ {[%clk
0:00:20.2]} 24. Kh1 {[%clk 0:00:47.3]} 24... Rc8 {[%clk 0:00:20]} 25. Qe2 {[%clk
0:00:41.8]} 25... Nac7 {[%clk 0:00:19]} 26. Bd2 {[%clk 0:00:39.3]} 26... Ne7
{[%clk 0:00:14.3]} 27. Rad1 {[%clk 0:00:32.8]} 27... Qc6+ {[%clk 0:00:12.4]} 28.
Ne4 {[%clk 0:00:32.6]} 28... Ncd5 {[%clk 0:00:10.2]} 29. Qg2 {[%clk 0:00:29.6]}
29... Rcf8 {[%clk 0:00:09.1]} 30. Bc1 {[%clk 0:00:24.9]} 30... Ne3 {[%clk
0:00:09.1]} 31. Bxe3 {[%clk 0:00:24.4]} 31... Bxe3 {[%clk 0:00:10]} 32. Rd6
{[%clk 0:00:22.4]} 32... Qc4 {[%clk 0:00:08]} 33. Rd7 {[%clk 0:00:16.7]} 33...
Nd5 {[%clk 0:00:04.6]} 34. Nd6 {[%clk 0:00:13]} 34... Nxf4 {[%clk 0:00:03.7]}
35. Nxc4 {[%clk 0:00:08.7]} 35... Nxg2 {[%clk 0:00:03.3]} 36. Rxf5 {[%clk
0:00:09]} 36... Rxf5 {[%clk 0:00:02.2]} 37. Kxg2 {[%clk 0:00:09.3]} 37... Bc1
{[%clk 0:00:01.9]} 38. Rd1 {[%clk 0:00:06.9]} 38... b5 {[%clk 0:00:02]} 39. Rxc1
{[%clk 0:00:06.8]} 39... bxc4 {[%clk 0:00:02.5]} 40. Rxc4 {[%clk 0:00:07.7]}
40... Rxe5 {[%clk 0:00:03.1]} 41. Nf4 {[%clk 0:00:07.3]} 41... g5 {[%clk
0:00:02.5]} 42. Rc8+ {[%clk 0:00:05.8]} 42... Kf7 {[%clk 0:00:01.9]} 43. Rf8+
{[%clk 0:00:04.9]} 1-0

[Event "Early-Titled-Tuesday-Blitz-November-28-2023"]
[Site "Chess.com"]
[Date "2023.11.28"]
[Round "1"]
[White "liczner"]
[Black "KononenkoD"]
[Result "1/2-1/2"]
[WhiteElo "2896"]
[BlackElo "2507"]
[TimeControl "180+1"]
[EndTime "8:07:45 PST"]
[Termination "Game drawn by repetition"]

1. e4 {[%clk 0:02:35.3]} 1... c6 {[%clk 0:02:59.7]} 2. d4 {[%clk 0:02:35.3]}
2... d5 {[%clk 0:03:00.6]} 3. Nc3 {[%clk 0:02:35.7]} 3... dxe4 {[%clk
0:03:00.7]} 4. Nxe4 {[%clk 0:02:36.6]} 4... Bf5 {[%clk 0:03:01.1]} 5. Ng3 {[%clk
0:02:37.1]} 5... Bg6 {[%clk 0:03:01.5]} 6. h4 {[%clk 0:02:37.9]} 6... h6 {[%clk
0:03:01.4]} 7. Nf3 {[%clk 0:02:38.6]} 7... Nd7 {[%clk 0:03:01.4]} 8. h5 {[%clk
0:02:39.2]} 8... Bh7 {[%clk 0:03:01.9]} 9. Bd3 {[%clk 0:02:39.8]} 9... Bxd3
{[%clk 0:03:02.5]} 10. Qxd3 {[%clk 0:02:40.7]} 10... e6 {[%clk 0:03:03.4]} 11.
Bd2 {[%clk 0:02:41.3]} 11... Ngf6 {[%clk 0:03:03.3]} 12. O-O-O {[%clk
0:02:41.8]} 12... Be7 {[%clk 0:03:03.7]} 13. Kb1 {[%clk 0:02:39.6]} 13... Rc8
{[%clk 0:03:01.7]} 14. Ne4 {[%clk 0:02:36.8]} 14... c5 {[%clk 0:03:01.7]} 15.
dxc5 {[%clk 0:02:23]} 15... Nxc5 {[%clk 0:02:57.8]} 16. Nxc5 {[%clk 0:02:19.4]}
16... Bxc5 {[%clk 0:02:56.4]} 17. Ne5 {[%clk 0:01:47.1]} 17... Qxd3 {[%clk
0:02:55]} 18. Nxd3 {[%clk 0:01:47.1]} 18... Bb6 {[%clk 0:02:44]} 19. f3 {[%clk
0:01:44.2]} 19... O-O {[%clk 0:02:41.6]} 20. g4 {[%clk 0:01:36.1]} 20... Nd5
{[%clk 0:02:40.9]} 21. Rhe1 {[%clk 0:01:29.1]} 21... Bd8 {[%clk 0:02:28.9]} 22.
Bc1 {[%clk 0:01:23.5]} 22... Bh4 {[%clk 0:02:18.7]} 23. Rh1 {[%clk 0:01:19.8]}
23... Bf6 {[%clk 0:02:17.9]} 24. f4 {[%clk 0:01:18.7]} 24... Bd4 {[%clk
0:02:10.3]} 25. f5 {[%clk 0:01:00.2]} 25... Bf6 {[%clk 0:01:45]} 26. fxe6 {[%clk
0:00:52.1]} 26... fxe6 {[%clk 0:01:44.8]} 27. Rhe1 {[%clk 0:00:52.7]} 27... Rc6
{[%clk 0:01:39.1]} 28. Re4 {[%clk 0:00:52.7]} 28... Rfc8 {[%clk 0:01:27.2]} 29.
Re2 {[%clk 0:00:52.7]} 29... a5 {[%clk 0:01:24.4]} 30. Rg1 {[%clk 0:00:49.8]}
30... a4 {[%clk 0:01:21]} 31. a3 {[%clk 0:00:48.9]} 31... Rb6 {[%clk 0:01:19.6]}
32. Ka1 {[%clk 0:00:45.2]} 32... Rbc6 {[%clk 0:01:05.7]} 33. Rgg2 {[%clk
0:00:44.9]} 33... b5 {[%clk 0:01:04.4]} 34. Ka2 {[%clk 0:00:41.9]} 34... Rc4
{[%clk 0:00:59.2]} 35. Ka1 {[%clk 0:00:20.6]} 35... b4 {[%clk 0:00:56.8]} 36.
axb4 {[%clk 0:00:20]} 36... Nxb4 {[%clk 0:00:53.7]} 37. Nxb4 {[%clk 0:00:19.7]}
37... Rxb4 {[%clk 0:00:54.6]} 38. c3 {[%clk 0:00:18.2]} 38... Rb6 {[%clk
0:00:50.5]} 39. Ka2 {[%clk 0:00:16.3]} 39... a3 {[%clk 0:00:49.2]} 40. bxa3
{[%clk 0:00:15.4]} 40... Rxc3 {[%clk 0:00:46.6]} 41. Rc2 {[%clk 0:00:13.5]}
41... Rf3 {[%clk 0:00:40.9]} 42. g5 {[%clk 0:00:10.4]} 42... hxg5 {[%clk
0:00:40.4]} 43. Bxg5 {[%clk 0:00:11.3]} 43... Bxg5 {[%clk 0:00:37.3]} 44. Rxg5
{[%clk 0:00:12.2]} 44... Ra6 {[%clk 0:00:34]} 45. Rc7 {[%clk 0:00:12.1]} 45...
Rfxa3+ {[%clk 0:00:30.5]} 46. Kb2 {[%clk 0:00:12.3]} 46... Ra2+ {[%clk
0:00:30.6]} 47. Kb1 {[%clk 0:00:09.7]} 47... Ra1+ {[%clk 0:00:28.8]} 48. Kb2
{[%clk 0:00:10.2]} 48... R1a2+ {[%clk 0:00:27.9]} 49. Kb3 {[%clk 0:00:09.3]}
49... R2a3+ {[%clk 0:00:25.9]} 50. Kb2 {[%clk 0:00:07.7]} 50... Ra2+ {[%clk
0:00:20.4]} 1/2-1/2